lending/lending_fUSD_20251107
["ID","MTS","AMOUNT","RATE_DAILY","PERIOD"]
[393325198,1762475352253,-500.0,0.00014999,2]
[393325199,1762475352292,-500.0,0.00014999,2]
[393325200,1762475352333,-500.0,0.00014999,2]
[393325201,1762475352369,-500.0,0.00014999,2]
[393325202,1762475352536,-401.99833089,0.00015,2]
[393325203,1762475352815,-50.38318014,0.00015,2]
[393325204,1762475352832,-500.0,0.00015,2]
[393325205,1762475352847,-3266.17242648,0.00015,2]
[393325206,1762475352873,-10000.01,0.00015,2]
[393325207,1762475352887,-10000.01,0.00015,2]
[393325208,1762475352900,-10000.01,0.00015,2]
[393325209,1762475352914,-10000.01,0.00015,2]
[393325210,1762475353597,-293.75208611,0.00015,2]
[393325211,1762475353904,-10000.01,0.00015,2]
[393325212,1762475354025,-10000.01,0.00015,2]
[393325213,1762475354149,-10000.01,0.00015,2]
[393325214,1762475354263,-10000.01,0.00015,2]
[393325215,1762475355675,-420.5065356,0.00015,2]
[393325216,1762475358370,-171.37691835,0.00014999,2]
[393325217,1762475358392,-17.16439023,0.00015,2]
[393325218,1762475359966,-167.14496293,0.00015,2]
[393325220,1762475361125,-1376.03632599,0.00015,2]
[393325221,1762475361548,-646.58121197,0.00015,2]
[393325222,1762475364229,-243.8249974,0.00015,2]
[393325224,1762475372367,-151.0,0.00014997,2]
[393325225,1762475372687,-279.58333085,0.00015,2]
[393325226,1762475374296,-151.0,0.00015,2]
[393325227,1762475376261,-198.38682915,0.00015,2]
[393325228,1762475378311,-194.9694206,0.00015,2]
[393325229,1762475394788,-303.41188575,0.00015,2]
[393325230,1762475396413,-390.50040537,0.00015,2]
[393325231,1762475399297,-163.44697346,0.00015,2]
[393325232,1762475402246,-300.0,0.00014999,2]
[393325233,1762475402522,-300.0,0.00014999,2]
[393325234,1762475402554,-1200.0,0.00014999,2]
[393325235,1762475402586,-150.0,0.00014999,2]
[393325236,1762475403090,300.0,0.00014999,2]
[393325237,1762475404731,1136.43,0.0001499,2]
[393325238,1762475404973,1136.43,0.0001499,2]
[393325239,1762475405211,1136.43,0.0001499,2]
[393325240,1762475405310,-152.66510495,0.00015,2]
[393325241,1762475405448,1136.43,0.0001499,2]
[393325242,1762475405704,1136.43,0.0001499,2]
[393325243,1762475406870,-245.96501431,0.00015,2]
[393325244,1762475407020,117.86,0.0001499,2]
[393325245,1762475407042,7020.01,0.0001499,2]
[393325246,1762475407265,2980.0,0.0001499,2]
[393325247,1762475407289,4157.87,0.0001499,2]
[393325248,1762475408485,4011.168927,7.945e-05,2]
[393325249,1762475408638,-552.49176876,0.00015,2]
[393325250,1762475412309,-384.44191324,0.00015,2]
[393325251,1762475414554,-164.75012398,0.00015,2]
[393325252,1762475416243,500.0,0.00014999,2]
[393325253,1762475417850,-327.06857838,0.00015,2]
[393325254,1762475420252,-235.86870532,0.00015,2]
[393325255,1762475421823,-279.30367164,0.00015,2]
[393325256,1762475423629,-300.0,0.00015,2]
[393325257,1762475428418,166.45415363,0.00014999,2]
[393325258,1762475429029,-324.26015561,0.00015,2]
[393325301,1762475431587,-180905.20652782,0.00015,2]
[393325302,1762475431645,-2691.44227888,0.00015,2]
[393325303,1762475431656,-254.0,0.00015,2]
[393325304,1762475431667,-25578.41624523,0.00015,2]
[393325305,1762475431679,-748.69638418,0.00015,2]
[393325306,1762475431690,-86072.04549576,0.00015,2]
[393325307,1762475431707,-719.19571675,0.00015,2]
[393325308,1762475432301,-319.79603012,0.00015,2]
[393325309,1762475433852,-299.26067928,0.00015,2]
[393325310,1762475433970,-220.27609719,0.00015,2]
[393325311,1762475436756,-188.90281116,0.00015,2]
[393325313,1762475437480,-1199.44426882,0.00015,2]
[393325314,1762475437590,-837.57548109,0.00015,2]
[393325315,1762475437602,-12113.27560949,0.00015,2]
[393325318,1762475439588,-11856.91255006,0.00015,2]
[393325319,1762475439599,-573.82289531,0.00015,2]
[393325320,1762475439645,-311.86,0.00015,2]
[393325321,1762475439656,-66282.36551903,0.00015,2]
[393325322,1762475439668,-2079.88486355,0.00015,2]
[393325355,1762475440409,-1.7e-07,0.00015,2]
[393325356,1762475440421,-57868.38879509,0.00015,2]
[393325357,1762475440431,-150131.89729417,0.00015,3]
[393325358,1762475440441,-2000.0,0.00015,2]
[393325359,1762475440450,-168.23399195,0.00015,2]
[393325360,1762475440460,-200.0,0.00015,2]
[393325361,1762475440480,-1233.24598603,0.0001515,2]
[393325362,1762475440491,-200.0,0.0001515,2]
[393325363,1762475440502,-1915.69504955,0.00015233,2]
[393325364,1762475440512,-200.0,0.00015301,2]
[393325365,1762475440522,-200.0,0.00015455,2]
[393325366,1762475440531,-500.0,0.00015521,2]
[393325367,1762475440542,-1915.69504955,0.00015567,2]
[393325368,1762475440551,-200.0,0.00015609,2]
[393325369,1762475440560,-1915.69504955,0.000159,2]
[393325370,1762475440570,-255.0,0.00016124,2]
[393325371,1762475440579,-1915.69504955,0.00016233,2]
[393325372,1762475440589,-166.93750844,0.00016316,2]
[393325373,1762475440600,-201.54,0.00016319,2]
[393325374,1762475440610,-500.0,0.00016411,2]
[393325375,1762475440620,-420.0,0.00016416,2]
[393325376,1762475440631,-1772.66,0.00016438,2]
[393325377,1762475440641,-227.18753325,0.00016499,2]
[393325378,1762475440651,-1680.0,0.00016499,2]
[393325379,1762475440661,-195.0,0.000165,2]
[393325380,1762475440671,-250.0,0.000165,2]
[393325381,1762475440681,-300.0,0.000165,2]
[393325382,1762475440691,-195.0,0.000165,2]
[393325383,1762475440702,-200.0,0.000165,2]
[393325384,1762475440711,-300.0,0.000165,2]
[393325385,1762475440721,-195.0,0.000165,2]
[393325386,1762475440731,-2500.0,0.000165,2]
[393325387,1762475440741,-300.0,0.000165,2]
[393325388,1762475440751,-300.0,0.000165,2]
[393325389,1762475440763,-1915.69504955,0.00016567,2]
[393325390,1762475440773,-1915.69504955,0.000169,2]
[393325391,1762475440783,-1000.0,0.00016985,2]
[393325392,1762475440793,-2178.0,0.00017033,2]
[393325393,1762475440803,-166.66,0.00017066,2]
[393325394,1762475440813,-3272.0,0.00017183,2]
[393325395,1762475440823,-1915.69504955,0.00017233,2]
[393325396,1762475440833,-241.54618244,0.00017236,2]
[393325397,1762475440843,-173.0,0.00017293,2]
[393325398,1762475440856,-433.0,0.00017339,2]
[393325399,1762475440867,-892.0,0.00017341,2]
[393325400,1762475440876,-327.0,0.00017399,2]
[393325401,1762475440886,-300.0,0.000174,6]
[393325402,1762475441123,-166.66,0.00017404,2]
[393325403,1762475441136,-336.95459951,0.00017422,2]
[393325404,1762475441145,-1200.0,0.00017498,2]
[393325405,1762475441154,-531.8726,0.000175,2]
[393325406,1762475441167,-2434.8606,0.000175,2]
[393325407,1762475441178,-234.3343,0.000175,2]
[393325408,1762475441187,-1605.20546208,0.000175,2]
[393325409,1762475441197,-600.0,0.000175,6]
[393325410,1762475441206,-241.54618244,0.00017505,2]
[393325411,1762475441216,-186.92040488,0.00017534,2]
[393325412,1762475441225,-1915.69504955,0.00017567,2]
[393325413,1762475441235,-500.0,0.00017573,2]
[393325414,1762475441244,-500.0,0.00017573,2]
[393325415,1762475441255,-500.0,0.00017573,2]
[393325416,1762475441265,-500.0,0.00017573,2]
[393325417,1762475441276,-500.0,0.00017573,2]
[393325418,1762475441286,-503.10120576,0.00017573,2]
[393325419,1762475441297,-500.0,0.00017573,2]
[393325420,1762475441307,-500.0,0.00017573,2]
[393325421,1762475441316,-465.03295868,0.00017573,2]
[393325422,1762475441326,-329.38656349,0.00017573,2]
[393325423,1762475441336,-500.49618419,0.00017573,2]
[393325424,1762475441347,-500.0,0.00017573,2]
[393325425,1762475441357,-500.0,0.00017573,2]
[393325426,1762475441366,-500.0,0.00017573,2]
[393325427,1762475441376,-151.0,0.00017597,2]
[393325428,1762475441388,-500.0,0.00017599,2]
[393325429,1762475441398,-500.0,0.00017599,2]
[393325430,1762475441407,-500.0,0.00017599,2]
[393325431,1762475441417,-500.0,0.00017599,2]
[393325432,1762475441428,-516.57414834,0.00017599,2]
[393325433,1762475441438,-557.48623216,0.00017599,2]
[393325434,1762475441448,-500.0,0.00017599,2]
[393325435,1762475441458,-500.0,0.00017599,2]
[393325436,1762475441468,-500.0,0.00017599,2]
[393325437,1762475441479,-500.0,0.00017599,2]
[393325438,1762475441489,-500.0,0.00017599,2]
[393325439,1762475441501,-500.0,0.00017599,2]
[393325440,1762475441511,-500.0,0.00017599,2]
[393325441,1762475441521,-173.0,0.00017599,2]
[393325442,1762475441531,-420000.0,0.000176,2]
[393325443,1762475441540,-1000.0,0.000176,6]
[393325444,1762475441550,-477.87911524,0.00017633,2]
[393325445,1762475441559,-1315.0,0.00017663,2]
[393325446,1762475441572,-607.0,0.00017663,2]
[393325447,1762475441583,-574.0,0.00017663,2]
[393325448,1762475441593,-2141.0,0.00017663,2]
[393325449,1762475441603,-893.73840764,0.00017669,2]
[393325450,1762475441614,-221.80400124,0.0001769,2]
[393325451,1762475441624,-500.0,0.00017699,2]
[393325452,1762475441635,-500.0,0.00017699,2]
[393325453,1762475441645,-500.0,0.00017699,2]
[393325454,1762475441656,-1300.0,0.000177,6]
[393325455,1762475441667,-1605.20546207,0.000177,2]
[393325456,1762475441677,-166.66,0.00017742,2]
[393325457,1762475441687,-173.0,0.00017756,2]
[393325458,1762475441697,-221.0,0.00017796,2]
[393325459,1762475441707,-1700.0,0.000178,6]
[393325460,1762475441717,-892.0,0.00017817,2]
[393325461,1762475441727,-1490.82835,0.0001782,2]
[393325462,1762475441738,-181.88166078,0.00017827,2]
[393325463,1762475441748,-500.0,0.00017829,2]
[393325464,1762475441758,-500.0,0.00017829,2]
[393325465,1762475441769,-500.0,0.00017829,2]
[393325466,1762475441779,-500.0,0.00017829,2]
[393325467,1762475441789,-500.0,0.00017829,2]
[393325468,1762475441799,-500.0,0.00017829,2]
[393325469,1762475441810,-500.0,0.00017829,2]
[393325470,1762475441820,-500.0,0.00017829,2]
[393325471,1762475441830,-500.0,0.00017829,2]
[393325472,1762475441839,-500.0,0.00017829,2]
[393325473,1762475441850,-94102.16433753,0.0001783,2]
[393325474,1762475441859,-150.0,0.00017835,2]
[393325475,1762475441869,-3785.882,0.00017857,2]
[393325476,1762475441879,-162.1104191,0.000179,2]
[393325477,1762475441888,-300.0,0.000179,6]
[393325478,1762475441898,-1605.20546207,0.000179,2]
[393325479,1762475441907,-1915.69504955,0.000179,2]
[393325480,1762475441917,-173.0,0.00017923,2]
[393325481,1762475441926,-1490.82836,0.0001793,2]
[393325482,1762475441935,-820.0,0.00017963,2]
[393325483,1762475441945,-1596.0,0.00017963,2]
[393325484,1762475441955,-1273.0,0.00017963,2]
[393325485,1762475441966,-812.0,0.00017963,2]
[393325486,1762475441976,-905.0,0.00017963,2]
[393325487,1762475441985,-1188.0,0.00017963,2]
[393325488,1762475441994,-285.0,0.00017964,2]
[393325489,1762475442004,-336.95459951,0.00017964,2]
[393325490,1762475442013,-587.0,0.00017966,2]
[393325491,1762475442023,-427.0,0.00017973,2]
[393325492,1762475442032,-503.54833867,0.00017973,2]
[393325493,1762475442041,-500.0,0.00017973,2]
[393325494,1762475442050,-500.0,0.00017973,2]
[393325495,1762475442060,-576.60959597,0.00017973,2]
[393325496,1762475442069,-500.0,0.00017973,2]
[393325497,1762475442079,-500.0,0.00017973,2]
[393325498,1762475442088,-500.0,0.00017973,2]
[393325499,1762475442098,-500.0,0.00017973,2]
[393325500,1762475442108,-500.0,0.00017973,2]
[393325501,1762475442119,-500.0,0.00017973,2]
[393325502,1762475442128,-500.95181899,0.00017973,2]
[393325503,1762475442138,-500.0,0.00017973,2]
[393325504,1762475442147,-500.0,0.00017973,2]
[393325505,1762475442157,-158.14817295,0.00017973,2]
[393325506,1762475442166,-505.37835354,0.00017973,2]
[393325507,1762475442175,-500.0,0.00017973,2]
[393325508,1762475442185,-500.0,0.00017973,2]
[393325509,1762475442194,-545.08,0.00017973,2]
[393325510,1762475442204,-150.0,0.00017973,2]
[393325511,1762475442214,-500.0,0.00017973,2]
[393325512,1762475442223,-500.0,0.00017973,2]
[393325513,1762475442233,-159.31299469,0.00017973,2]
[393325514,1762475442243,-500.0,0.00017973,2]
[393325515,1762475442254,-500.0,0.00017973,2]
[393325516,1762475442264,-500.0,0.00017973,2]
[393325517,1762475442274,-150.0,0.00017973,2]
[393325518,1762475442283,-150.0,0.00017973,2]
[393325519,1762475442296,-150.0,0.00017973,2]
[393325521,1762475442306,-150.0,0.00017973,2]
[393325524,1762475442320,-500.0,0.00017973,2]
[393325526,1762475442329,-500.0,0.00017973,2]
[393325527,1762475442340,-150.0,0.00017973,2]
[393325528,1762475442349,-150.0,0.00017973,2]
[393325529,1762475442359,-241.6117319,0.00017973,2]
[393325530,1762475442369,-150.0,0.00017973,2]
[393325531,1762475442380,-150.0,0.00017973,2]
[393325532,1762475442389,-150.0,0.00017973,2]
[393325534,1762475442399,-500.0,0.00017973,2]
[393325536,1762475442408,-150.0,0.00017973,2]
[393325538,1762475442417,-500.0,0.00017973,2]
[393325540,1762475442428,-500.0,0.00017973,2]
[393325542,1762475442441,-500.0,0.00017973,2]
[393325543,1762475442450,-500.0,0.00017973,2]
[393325544,1762475442459,-500.0,0.00017973,2]
[393325545,1762475442468,-500.0,0.00017973,2]
[393325546,1762475442477,-446.67735792,0.00017973,2]
[393325547,1762475442486,-150.0,0.00017973,2]
[393325548,1762475442495,-150.0,0.00017973,2]
[393325549,1762475442507,-500.0,0.00017973,2]
[393325550,1762475442517,-150.0,0.00017973,2]
[393325551,1762475442526,-150.0,0.00017973,2]
[393325552,1762475442535,-500.0,0.00017973,2]
[393325553,1762475442544,-500.0,0.00017973,2]
[393325554,1762475442554,-593.0,0.00017973,2]
[393325555,1762475442563,-150.0,0.00017973,2]
[393325557,1762475442572,-200.0,0.00017973,2]
[393325559,1762475442581,-500.0,0.00017973,2]
[393325561,1762475442591,-150.0,0.00017973,2]
[393325563,1762475442600,-200.0,0.00017973,2]
[393325564,1762475442610,-150.0,0.00017973,2]
[393325565,1762475442620,-500.0,0.00017973,2]
[393325567,1762475442630,-5800.0,0.00017973,2]
[393325569,1762475442639,-5800.0,0.00017982,2]
[393325571,1762475442649,-5800.0,0.0001799,2]
[393325573,1762475442658,-1820.6631738,0.00017992,2]
[393325574,1762475442667,-500.0,0.00017998,2]
[393325575,1762475442677,-1000.0,0.00017999,2]
[393325576,1762475442686,-1644.3789566,0.00017999,2]
[393325577,1762475442695,-513.53978378,0.00017999,2]
[393325578,1762475442705,-452.00548777,0.00017999,2]
[393325579,1762475442715,-494.3167323,0.00017999,3]
[393325580,1762475442724,-500.0,0.00017999,2]
[393325581,1762475442735,-500.0,0.00017999,2]
[393325582,1762475442744,-500.0,0.00017999,2]
[393325583,1762475442754,-500.0,0.00017999,2]
[393325584,1762475442764,-500.0,0.00017999,2]
[393325585,1762475442774,-5800.0,0.00017999,2]
[393325586,1762475442785,-198.4544867,0.00017999,2]
[393325587,1762475442795,-500.0,0.00017999,2]
[393325588,1762475442804,-562.8248644,0.00017999,2]
[393325589,1762475442813,-500.0,0.00017999,2]
[393325590,1762475442823,-636.74225849,0.00017999,2]
[393325591,1762475442832,-500.0,0.00017999,2]
[393325592,1762475442842,-500.0,0.00017999,2]
[393325593,1762475442851,-500.0,0.00017999,2]
[393325594,1762475442860,-500.0,0.00017999,2]
[393325595,1762475442869,-500.0,0.00017999,2]
[393325596,1762475442879,-641.73436388,0.00017999,2]
[393325597,1762475442890,-500.0,0.00017999,2]
[393325598,1762475442901,-500.0,0.00017999,2]
[393325599,1762475442910,-356.86085798,0.00017999,2]
[393325600,1762475442920,-500.0,0.00017999,2]
[393325601,1762475442930,-500.0,0.00017999,2]
[393325602,1762475442940,-500.0,0.00017999,2]
[393325603,1762475442949,-500.0,0.00017999,2]
[393325604,1762475442958,-500.0,0.00017999,2]
[393325605,1762475442967,-500.0,0.00017999,2]
[393325606,1762475442977,-500.0,0.00017999,2]
[393325607,1762475442988,-500.0,0.00017999,2]
[393325608,1762475442997,-500.0,0.00017999,2]
[393325609,1762475443009,-640.49374867,0.00017999,2]
[393325610,1762475443018,-1866.0,0.00018,2]
[393325611,1762475443028,-943224.89499643,0.00018,2]
[393325612,1762475443042,-531.59615659,0.00018,2]
[393325613,1762475443206,-350.57455761,0.00018,2]
[393325614,1762475443225,-8038.82145275,0.00018,2]
[393325629,1762475445846,-3482.29585514,0.00018,2]
[393325630,1762475446019,-657.22854986,0.00017963,2]
[393325631,1762475446240,-348.03800084,0.00017963,2]
[393325633,1762475449048,410.28585585,0.000149,2]
[393325634,1762475460647,500.0,0.00014999,2]
[393325635,1762475460699,186.29204157,0.00014999,2]
[393325636,1762475462545,-500.0,0.00017599,2]
[393325637,1762475462575,-513.25043016,0.00017829,2]
[393325638,1762475462605,-987.9763479,0.0001783,2]
[393325639,1762475462635,-300.0,0.00017962,2]
[393325640,1762475462663,-2417.7334493,0.00017963,2]
[393325641,1762475465396,-500.0,0.00016438,2]
[393325642,1762475465425,-500.0,0.00017534,2]
[393325643,1762475465455,-1342.01,0.00017963,2]
[393325644,1762475468421,-500.0,0.00017573,2]
[393325645,1762475468454,-3684.02,0.00017963,2]
[393325646,1762475468683,899.686119,7.945e-05,2]
[393325647,1762475471468,-500.0,0.00014999,2]
[393325648,1762475471505,-359.45737102,0.00014999,2]
[393325649,1762475471547,-500.0,0.00014999,2]
[393325650,1762475471584,-500.0,0.00014999,2]
[393325651,1762475471620,-500.0,0.00014999,2]
[393325652,1762475471657,-500.0,0.00014999,2]
[393325653,1762475471694,-500.0,0.00014999,2]
[393325654,1762475471730,-500.0,0.00014999,2]
[393325655,1762475471767,-649.12525796,0.00017963,2]
[393325656,1762475474448,-982.84474204,0.00017963,2]
[393325657,1762475474481,-1559.32051592,0.00017963,2]
[393325658,1762475492685,-500.0,0.00014999,2]
[393325659,1762475492718,-500.0,0.00014999,2]
[393325660,1762475494111,627.11405946,0.00014999,2]
[393325661,1762475494176,500.0,0.00014999,2]
[393325663,1762475494582,500.0,0.00014999,2]
[393325693,1762475507318,211.06823477,0.00014999,2]
[393325700,1762475521283,500.0,0.00014999,2]
[393325701,1762475521648,500.0,0.00014999,2]
[393325702,1762475523951,-500.0,0.00016438,2]
[393325703,1762475523980,-423.77664469,0.00016438,2]
[393325704,1762475524008,-224.35,0.00017436,2]
[393325705,1762475524036,-1000.0,0.00017507,2]
[393325706,1762475524064,-300.0,0.00017598,2]
[393325707,1762475524094,-495.26311684,0.00017599,2]
[393325708,1762475524122,-500.0,0.00017599,2]
[393325709,1762475524155,-309.24838253,0.00017599,2]
[393325710,1762475524186,-500.0,0.00017599,2]
[393325711,1762475524215,-500.0,0.00017599,2]
[393325712,1762475524497,-500.0,0.00017599,2]
[393325713,1762475524528,-500.0,0.00017829,2]
[393325714,1762475524558,-3084.33051592,0.00017963,2]
[393325715,1762475526705,-1831.34896816,0.00017963,2]
[393325716,1762475526740,-1596.0,0.00017963,2]
[393325717,1762475526770,-820.0,0.00017963,2]
[393325718,1762475526800,-600.31206368,0.00017963,2]
[393325719,1762475529731,-509.32079485,0.00016438,2]
[393325720,1762475529762,-150.0,0.00017445,2]
[393325721,1762475529794,-477.87911524,0.00017627,2]
[393325722,1762475529826,-304.68793632,0.00017963,2]
[393325723,1762475529856,-1188.0,0.00017963,2]
[393325724,1762475529888,-1273.0,0.00017963,2]
[393325725,1762475529918,-812.0,0.00017963,2]
[393325726,1762475529948,-70.23430718,0.00017973,2]
[393325727,1762475530050,-429.76569282,0.00017973,2]
[393325728,1762475530080,-502.21940782,0.00017973,2]
[393325729,1762475530109,-244.81872118,0.00017999,2]
[393325730,1762475530140,-500.0,0.00017999,2]
[393325731,1762475530171,-500.0,0.00017999,2]
[393325732,1762475530202,-500.0,0.00017999,2]
[393325733,1762475530234,-500.0,0.00017999,2]
[393325734,1762475530266,-500.0,0.00017999,2]
[393325735,1762475530298,-500.0,0.00017999,2]
[393325736,1762475530337,-500.0,0.00017999,2]
[393325737,1762475530371,-146.40235636,0.00017999,2]
[393325738,1762475532930,-503.47187809,0.00014999,2]
[393325739,1762475593153,-282.95484058,0.00017004,2]
[393325741,1762475607320,500.0,0.00014999,2]
[393325742,1762475607693,500.0,0.00014999,2]
[393325743,1762475619058,500.0,0.00038715,120]
[393325744,1762475619428,500.0,0.00038715,120]
[393325745,1762475619865,500.0,0.00038715,120]
[393325746,1762475620282,500.0,0.00038715,120]
[393325747,1762475620667,500.0,0.00038715,120]
[393325748,1762475621283,500.0,0.00038715,120]
[393325749,1762475621664,500.0,0.00038715,120]
[393325750,1762475622270,500.0,0.00038715,120]
[393325751,1762475622647,500.0,0.00038715,120]
[393325752,1762475623031,500.0,0.00038715,120]
[393325753,1762475623393,500.0,0.00038715,120]
[393325754,1762475623777,500.0,0.00038715,120]
[393325755,1762475624156,500.0,0.00038715,120]
[393325756,1762475624549,500.0,0.00038715,120]
[393325757,1762475624942,500.0,0.00038715,120]
[393325758,1762475625320,500.0,0.00038715,120]
[393325759,1762475625766,500.0,0.00038715,120]
[393325760,1762475626134,497.29721711,0.00038715,120]
[393325761,1762475628264,500.0,0.00014999,2]
[393325762,1762475628642,500.0,0.00014999,2]
[393325763,1762475629189,500.0,0.00014999,2]
[393325764,1762475629420,500.0,0.00014999,2]
[393325765,1762475681321,500.0,0.00038712,30]
[393325766,1762475684560,-366.0,0.00017013,2]
[393325767,1762475684588,-3997.6888988,0.00017337,2]
[393325768,1762475684616,-198.4544867,0.00017379,2]
[393325769,1762475684644,-366.0,0.00017426,2]
[393325770,1762475684874,-500.0,0.00017599,2]
[393325771,1762475684903,-500.0,0.00017599,2]
[393325772,1762475684935,-500.0,0.00017599,2]
[393325773,1762475684965,-477.87911524,0.00017624,2]
[393325774,1762475684995,-1000.0,0.00017654,2]
[393325775,1762475685026,-1000.0,0.00017661,2]
[393325776,1762475685055,-366.0,0.00017673,2]
[393325777,1762475685083,-312.25176952,0.00017675,2]
[393325778,1762475687446,-3300.7094818,0.00017371,2]
[393325779,1762475687479,-687.74823048,0.00017675,2]
[393325780,1762475687511,-331.53184843,0.00017675,2]
[393325781,1762475687540,-360.03087858,0.00017686,2]
[393325782,1762475690484,-639.96912142,0.00017686,2]
[393325783,1762475690512,-150.0,0.00017697,2]
[393325784,1762475690541,-1000.0,0.00017704,2]
[393325785,1762475690570,-1000.0,0.00017712,2]
[393325786,1762475690598,-1000.0,0.0001772,2]
[393325787,1762475690626,-1000.0,0.00017723,2]
[393325788,1762475690653,-150.0,0.00017727,2]
[393325789,1762475693468,-1000.0,0.00017728,2]
[393325790,1762475693496,-1000.0,0.00017733,2]
[393325791,1762475693522,-1000.0,0.00017736,2]
[393325792,1762475693550,-1000.0,0.00017752,2]
[393325793,1762475693578,-1000.0,0.00017754,2]
[393325794,1762475693781,-1000.0,0.00017759,2]
[393325795,1762475693810,-150.0,0.0001777,2]
[393325796,1762475693842,-1000.0,0.00017775,2]
[393325797,1762475717416,1331.65334435,0.00038712,30]
[393325798,1762475739906,-287.08890193,0.00014999,2]
[393325799,1762475741826,-212.91109807,0.00014999,2]
[393325800,1762475741872,-500.0,0.00014999,2]
[393325801,1762475778673,1480.0,0.00038712,60]
[393325802,1762475784547,158.0,0.000301,120]
[393325803,1762475788043,158.0,0.000301,120]
[393325806,1762475898643,500.0,0.00014999,2]
[393325807,1762475898809,500.0,0.00014999,2]
[393325808,1762475908723,95000.0,0.0003,120]
[393325809,1762475944942,180.0,0.000301,120]
[393325810,1762475947261,230.50719942,0.000301,120]
[393325825,1762475999077,-404.2924,0.00016913,2]
[393325826,1762475999108,-168.0,0.00017441,2]
[393325827,1762475999135,-217.58970178,0.000175,2]
[393325828,1762475999162,-250.0,0.0001752,2]
[393325830,1762475999576,-3607.29643424,0.00017554,2]
[393325834,1762476001945,-300.0,0.00017553,2]
[393325835,1762476001983,-1200.0,0.00017553,2]
[393325836,1762476002042,-7000.01,0.00017554,2]
[393325837,1762476004983,-325.0,0.00017553,2]
[393325838,1762476005025,-9350.01,0.00017554,2]
[393325839,1762476007972,-10000.01,0.00017554,2]
[393325840,1762476008093,-1150.84975986,0.00017554,2]
[393325841,1762476063978,500.0,0.00014999,2]
[393325842,1762476064458,500.0,0.00014999,2]
[393325843,1762476064840,636.74225849,0.00014999,2]
[393325844,1762476153204,500.0,0.00014999,2]
[393325845,1762476153751,500.0,0.00014999,2]
[393325846,1762476154108,500.0,0.00014999,2]
[393325847,1762476189863,170.0,1.06e-06,2]
[393325848,1762476208588,196.67,8.587e-05,2]
[393325849,1762476242627,500.0,0.00014999,2]
[393325850,1762476243008,500.0,0.00014999,2]
[393325851,1762476264169,190.0,0.00038706,120]
[393325852,1762476275610,500.0,0.00014999,2]
[393325853,1762476275978,500.0,0.00014999,2]
[393325854,1762476276431,500.0,0.00014999,2]
[393325855,1762476276828,500.0,0.00014999,2]
[393325856,1762476308022,500.0,0.00014999,2]
[393325857,1762476308359,500.0,0.00014999,2]
[393325858,1762476308672,500.0,0.00014999,2]
[393325859,1762476308993,500.0,0.00014999,2]
[393325860,1762476312710,500.0,0.00014999,2]
[393325861,1762476428716,500.0,0.00014999,2]
[393325862,1762476428978,496.59774151,0.00014999,2]
[393325863,1762476429002,3.40225849,0.00014999,2]
[393325864,1762476539686,301.10650151,0.00038707,30]
[393325865,1762476620084,-470.29,0.00015,2]